fUSD/lending_fUSD_20240429
["ID","MTS","AMOUNT","RATE_DAILY","PERIOD"]
[324872712,1714386634574,-500.0,0.00011503,2]
[324872713,1714386634583,-500.0,0.00011503,2]
[324872714,1714386634592,-500.0,0.00011503,2]
[324872715,1714386634602,-540.91062116,0.00011503,2]
[324872716,1714386634611,-500.0,0.00011503,2]
[324872717,1714386634620,-500.0,0.00011503,2]
[324872718,1714386634629,-500.0,0.00011503,2]
[324872719,1714386634638,-500.0,0.00011503,2]
[324872720,1714386634647,-500.0,0.00011503,2]
[324872721,1714386634657,-500.0,0.00011503,2]
[324872722,1714386634666,-500.0,0.00011503,2]
[324872723,1714386634675,-521.40991226,0.00011503,2]
[324872724,1714386634684,-500.0,0.00011503,2]
[324872725,1714386634694,-500.0,0.00011503,2]
[324872726,1714386634704,-500.0,0.00011503,2]
[324872727,1714386634713,-505.40510396,0.00011503,2]
[324872728,1714386634722,-500.0,0.00011503,2]
[324872729,1714386634731,-500.0,0.00011503,2]
[324872730,1714386634740,-579.88,0.00011503,2]
[324872731,1714386634749,-500.0,0.00011503,2]
[324872732,1714386634759,-587.34321999,0.00011503,2]
[324872733,1714386634768,-500.0,0.00011503,2]
[324872734,1714386634777,-500.0,0.00011503,2]
[324872735,1714386634787,-276.11223353,0.00011503,2]
[324872736,1714386634796,-500.0,0.00011503,2]
[324872737,1714386634806,-500.0,0.00011503,2]
[324872738,1714386634825,-500.0,0.00011503,2]
[324872739,1714386634835,-500.0,0.00011503,2]
[324872740,1714386634844,-500.0,0.00011503,2]
[324872741,1714386634853,-500.0,0.00011503,2]
[324872742,1714386634866,-500.0,0.00011503,2]
[324872743,1714386634875,-500.0,0.00011503,2]
[324872744,1714386634884,-500.0,0.00011503,2]
[324872745,1714386634893,-500.0,0.00011503,2]
[324872746,1714386634903,-500.0,0.00011503,2]
[324872747,1714386634912,-500.0,0.00011503,2]
[324872748,1714386634921,-500.0,0.00011503,2]
[324872749,1714386634930,-500.0,0.00011503,2]
[324872750,1714386634940,-815.72,0.00011503,2]
[324872751,1714386634952,-500.0,0.00011503,2]
[324872752,1714386634961,-500.0,0.00011503,2]
[324872753,1714386634970,-500.0,0.00011503,2]
[324872754,1714386634979,-500.0,0.00011503,2]
[324872755,1714386634988,-500.0,0.00011503,2]
[324872756,1714386634998,-500.0,0.00011503,2]
[324872757,1714386635007,-500.0,0.00011503,2]
[324872758,1714386635016,-659.52,0.00011503,2]
[324872759,1714386635026,-500.0,0.00011503,2]
[324872760,1714386635037,-500.0,0.00011503,2]
[324872761,1714386635047,-500.0,0.00011503,2]
[324872762,1714386635056,-513.23,0.00011503,2]
[324872763,1714386635066,-500.0,0.00011503,2]
[324872764,1714386635075,-546.01,0.00011503,2]
[324872765,1714386635085,-500.0,0.00011503,2]
[324872766,1714386635094,-500.0,0.00011503,2]
[324872767,1714386635103,-500.0,0.00011503,2]
[324872768,1714386635112,-500.0,0.00011503,2]
[324872769,1714386635121,-500.0,0.00011503,2]
[324872770,1714386635131,-689.25,0.00011503,2]
[324872771,1714386635140,-531.08,0.00011503,2]
[324872772,1714386635149,-500.0,0.00011503,2]
[324872773,1714386635159,-507.34,0.00011503,2]
[324872774,1714386635168,-1163.97,0.00011503,2]
[324872775,1714386635177,-500.0,0.00011503,2]
[324872776,1714386635187,-500.0,0.00011503,2]
[324872777,1714386635197,-500.0,0.00011503,2]
[324872778,1714386635206,-500.0,0.00011503,2]
[324872779,1714386635215,-500.0,0.00011503,2]
[324872780,1714386635224,-500.0,0.00011503,2]
[324872781,1714386635234,-2054.82,0.00011503,2]
[324872782,1714386635243,-544.35,0.00011503,2]
[324872783,1714386635252,-500.0,0.00011503,2]
[324872784,1714386635262,-500.0,0.00011503,2]
[324872785,1714386635271,-500.0,0.00011503,2]
[324872786,1714386635281,-500.0,0.00011503,2]
[324872787,1714386635290,-500.0,0.00011503,2]
[324872788,1714386635300,-1188.52,0.00011503,2]
[324872789,1714386635309,-1031.19,0.00011503,2]
[324872790,1714386635318,-400.58297498,0.00011503,2]
[324872791,1714386635327,-542.03,0.00011503,2]
[324872792,1714386635336,-500.0,0.00011503,2]
[324872793,1714386635346,-500.0,0.00011503,2]
[324872794,1714386635355,-500.0,0.00011503,2]
[324872795,1714386635364,-500.0,0.00011503,2]
[324872796,1714386635374,-500.0,0.00011503,2]
[324872797,1714386635383,-500.0,0.00011503,2]
[324872798,1714386635392,-500.0,0.00011503,2]
[324872799,1714386635401,-1137.67,0.00011503,2]
[324872800,1714386635410,-500.0,0.00011503,2]
[324872801,1714386635420,-500.0,0.00011503,2]
[324872802,1714386635429,-520.76,0.00011503,2]
[324872803,1714386635438,-652.84,0.00011503,2]
[324872804,1714386635447,-500.0,0.00011503,2]
[324872805,1714386635457,-519.09,0.00011503,2]
[324872806,1714386635466,-2346.54,0.00011503,2]
[324872807,1714386635476,-863.26,0.00011503,2]
[324872808,1714386635485,-314.15,0.00011503,2]
[324872809,1714386635494,-500.0,0.00011503,2]
[324872810,1714386635503,-500.0,0.00011503,2]
[324872811,1714386635513,-500.0,0.00011503,2]
[324872812,1714386635522,-500.0,0.00011503,2]
[324872813,1714386635532,-500.0,0.00011503,2]
[324872814,1714386635540,-508.25,0.00011503,2]
[324872815,1714386635549,-500.0,0.00011503,2]
[324872816,1714386635558,-592.63,0.00011503,2]
[324872817,1714386635568,-500.0,0.00011503,2]
[324872818,1714386635577,-500.0,0.00011503,2]
[324872819,1714386635587,-500.0,0.00011503,2]
[324872820,1714386635596,-500.0,0.00011503,2]
[324872821,1714386635605,-500.0,0.00011503,2]
[324872822,1714386635615,-500.0,0.00011503,2]
[324872823,1714386635624,-5817.91,0.00011503,2]
[324872824,1714386635634,-500.0,0.00011503,2]
[324872825,1714386635643,-500.0,0.00011503,2]
[324872826,1714386635652,-500.0,0.00011503,2]
[324872827,1714386635663,-500.0,0.00011503,2]
[324872828,1714386635672,-500.0,0.00011503,2]
[324872829,1714386635682,-500.0,0.00011503,2]
[324872830,1714386635693,-500.0,0.00011503,2]
[324872831,1714386635703,-500.0,0.00011503,2]
[324872832,1714386635713,-500.0,0.00011503,2]
[324872833,1714386635723,-500.0,0.00011503,2]
[324872834,1714386635733,-500.0,0.00011503,2]
[324872835,1714386635743,-500.0,0.00011503,2]
[324872836,1714386635752,-500.0,0.00011503,2]
[324872837,1714386635761,-6832.74,0.00011503,2]
[324872838,1714386635770,-500.0,0.00011503,2]
[324872839,1714386635780,-500.0,0.00011503,2]
[324872840,1714386635790,-500.0,0.00011503,2]
[324872841,1714386635799,-157.24074215,0.00011503,2]
[324872842,1714386635808,-500.0,0.00011503,2]
[324872843,1714386635816,-1052.31,0.00011503,2]
[324872844,1714386635825,-500.0,0.00011503,2]
[324872845,1714386635835,-500.0,0.00011503,2]
[324872846,1714386635844,-500.0,0.00011503,2]
[324872847,1714386635854,-500.0,0.00011503,2]
[324872848,1714386635864,-500.0,0.00011503,2]
[324872849,1714386635873,-6960.29,0.00011503,2]
[324872850,1714386635883,-500.0,0.00011503,2]
[324872851,1714386635893,-500.0,0.00011503,2]
[324872852,1714386635903,-500.0,0.00011503,2]
[324872853,1714386635912,-500.0,0.00011503,2]
[324872854,1714386635923,-500.0,0.00011503,2]
[324872855,1714386635932,-500.0,0.00011503,2]
[324872856,1714386635941,-157.49399249,0.00011503,2]
[324872857,1714386635951,-1403.13,0.00011503,2]
[324872858,1714386635964,-2694.49,0.00011503,2]
[324872859,1714386635974,-500.0,0.00011503,2]
[324872860,1714386635983,-649.07,0.00011503,2]
[324872861,1714386635992,-500.0,0.00011503,2]
[324872862,1714386636003,-500.0,0.00011503,2]
[324872863,1714386636012,-269.78466704,0.00011504,2]
[324872864,1714386636022,-500.0,0.00011504,2]
[324872865,1714386636032,-426.16155629,0.00011504,2]
[324872866,1714386636043,-500.0,0.00011504,2]
[324872867,1714386636053,-500.0,0.00011504,2]
[324872868,1714386636062,-500.0,0.00011504,2]
[324872869,1714386636072,-500.0,0.00011504,2]
[324872870,1714386636082,-500.0,0.00011504,2]
[324872871,1714386636091,-500.0,0.00011504,2]
[324872872,1714386636100,-500.0,0.00011504,2]
[324872873,1714386636110,-500.0,0.00011504,2]
[324872874,1714386636119,-500.0,0.00011504,2]
[324872875,1714386636129,-500.0,0.00011504,2]
[324872876,1714386636138,-500.0,0.00011504,2]
[324872877,1714386636147,-500.0,0.00011504,2]
[324872878,1714386636157,-500.0,0.00011504,2]
[324872879,1714386636166,-505.39812621,0.00011504,2]
[324872880,1714386636175,-500.0,0.00011504,2]
[324872881,1714386636184,-500.0,0.00011504,2]
[324872882,1714386636193,-503.24,0.00011504,2]
[324872883,1714386636202,-500.0,0.00011504,2]
[324872884,1714386636211,-500.0,0.00011504,2]
[324872885,1714386636220,-500.0,0.00011504,2]
[324872886,1714386636230,-500.0,0.00011504,2]
[324872887,1714386636239,-500.0,0.00011504,2]
[324872888,1714386636248,-500.0,0.00011504,2]
[324872889,1714386636257,-500.0,0.00011504,2]
[324872890,1714386636267,-541.49494242,0.00011504,2]
[324872891,1714386636276,-508.53133797,0.00011504,2]
[324872892,1714386636286,-500.0,0.00011504,2]
[324872893,1714386636295,-500.0,0.00011504,2]
[324872894,1714386636305,-189.56832384,0.00011504,2]
[324872895,1714386636315,-519.84,0.00011504,2]
[324872896,1714386636324,-519.25267878,0.00011504,2]
[324872897,1714386636333,-500.0,0.00011504,2]
[324872898,1714386636343,-500.0,0.00011504,2]
[324872899,1714386636352,-500.0,0.00011504,2]
[324872900,1714386636361,-500.0,0.00011504,2]
[324872901,1714386636370,-500.0,0.00011504,2]
[324872902,1714386636380,-500.0,0.00011504,2]
[324872903,1714386636389,-500.0,0.00011504,2]
[324872904,1714386636398,-500.0,0.00011504,2]
[324872905,1714386636408,-222.57,0.00011504,2]
[324872906,1714386636417,-500.0,0.00011504,2]
[324872907,1714386636426,-500.0,0.00011504,2]
[324872908,1714386636435,-500.0,0.00011504,2]
[324872909,1714386636444,-500.0,0.00011504,2]
[324872910,1714386636453,-500.0,0.00011504,2]
[324872911,1714386636463,-500.0,0.00011504,2]
[324872912,1714386636472,-500.0,0.00011504,2]
[324872913,1714386636481,-503.5741521,0.00011504,2]
[324872914,1714386636491,-500.0,0.00011504,2]
[324872915,1714386636500,-500.0,0.00011504,2]
[324872916,1714386636510,-500.0,0.00011504,2]
[324872917,1714386636519,-223.7165122,0.00011504,2]
[324872918,1714386636528,-295.31,0.00011504,2]
[324872919,1714386636539,-500.0,0.00011504,2]
[324872920,1714386636549,-500.0,0.00011504,2]
[324872921,1714386636558,-461.99162043,0.00011504,2]
[324872922,1714386636568,-478.2140512,0.00011504,2]
[324872923,1714386636577,-500.0,0.00011504,2]
[324872924,1714386636586,-470.62074701,0.00011504,2]
[324872925,1714386636596,-500.0,0.00011504,2]
[324872926,1714386636605,-500.0,0.00011504,2]
[324872927,1714386636614,-553.38,0.00011504,2]
[324872928,1714386636624,-500.0,0.00011504,2]
[324872929,1714386636633,-500.0,0.00011504,2]
[324872930,1714386636642,-503.72304937,0.00011504,2]
[324872931,1714386636651,-552.1,0.00011504,2]
[324872932,1714386636661,-504.40552321,0.00011504,2]
[324872933,1714386636671,-500.0,0.00011504,2]
[324872934,1714386636680,-504.32794996,0.00011504,2]
[324872935,1714386636689,-500.0,0.00011504,2]
[324872936,1714386636698,-159.2,0.00011504,2]
[324872937,1714386636708,-500.0,0.00011504,2]
[324872938,1714386636717,-555.49034131,0.00011504,2]
[324872939,1714386636726,-566.22,0.00011504,2]
[324872940,1714386636735,-500.0,0.00011504,2]
[324872941,1714386636744,-500.0,0.00011504,2]
[324872942,1714386636753,-500.0,0.00011504,2]
[324872943,1714386636763,-1269.92,0.00011504,2]
[324872944,1714386636772,-514.35,0.00011504,2]
[324872945,1714386636784,-500.0,0.00011504,2]
[324872946,1714386636793,-500.0,0.00011504,2]
[324872947,1714386636803,-508.37409256,0.00011504,2]
[324872948,1714386636812,-500.0,0.00011504,2]
[324872949,1714386636821,-500.0,0.00011504,2]
[324872950,1714386636830,-503.01406706,0.00011504,2]
[324872951,1714386636839,-500.0,0.00011504,2]
[324872952,1714386636848,-153.45395554,0.00011504,2]
[324872953,1714386636857,-500.0,0.00011504,2]
[324872954,1714386636866,-500.0,0.00011504,2]
[324872955,1714386636875,-500.0,0.00011504,2]
[324872956,1714386636884,-500.0,0.00011504,2]
[324872957,1714386636893,-500.0,0.00011504,2]
[324872958,1714386636902,-500.0,0.00011504,2]
[324872959,1714386636912,-1030.73,0.00011504,2]
[324872960,1714386636921,-500.0,0.00011504,2]
[324872961,1714386636930,-500.0,0.00011504,2]
[324872962,1714386636939,-169.47878325,0.00011504,2]
[324872963,1714386636950,-500.0,0.00011504,2]
[324872964,1714386636960,-500.0,0.00011505,2]
[324872965,1714386636969,-288.12,0.00011505,2]
[324872966,1714386636979,-500.0,0.00011505,2]
[324872967,1714386636989,-500.0,0.00011505,2]
[324872968,1714386636998,-3300.0,0.000116,4]
[324872969,1714386637008,-549.51,0.00011629,2]
[324872970,1714386637017,-1064.8642,0.000117,2]
[324872971,1714386637027,-6600.0,0.000117,4]
[324872972,1714386637040,-500.0,0.00011776,2]
[324872973,1714386637049,-500.0,0.00011776,2]
[324872974,1714386637058,-1052.69,0.00011776,2]
[324872975,1714386637067,-500.0,0.00011776,2]
[324872976,1714386637077,-500.0,0.00011776,2]
[324872977,1714386637086,-500.0,0.00011776,2]
[324872978,1714386637096,-500.0,0.00011776,2]
[324872979,1714386637105,-600.51,0.00011776,2]
[324872980,1714386637114,-500.0,0.00011776,2]
[324872981,1714386637124,-500.0,0.00011776,2]
[324872982,1714386637133,-500.0,0.00011776,2]
[324872983,1714386637142,-1129.72,0.00011776,2]
[324872984,1714386637151,-896.4,0.00011776,2]
[324872985,1714386637160,-500.0,0.00011776,2]
[324872986,1714386637170,-1382.62,0.00011776,2]
[324872987,1714386637179,-1011.76,0.00011776,2]
[324872988,1714386637189,-637.45,0.00011776,2]
[324872989,1714386637198,-500.0,0.00011776,2]
[324872990,1714386637207,-500.0,0.00011776,2]
[324872991,1714386637216,-1287.96,0.00011776,2]
[324872992,1714386637225,-500.0,0.00011776,2]
[324872993,1714386637235,-500.0,0.00011776,2]
[324872994,1714386637248,-500.0,0.00011776,2]
[324872995,1714386637267,-500.0,0.00011776,2]
[324872996,1714386637289,-500.0,0.00011776,2]
[324872997,1714386637310,-1470.93,0.00011776,2]
[324872998,1714386637330,-6214.85,0.00011776,2]
[324872999,1714386637350,-500.0,0.00011776,2]
[324873000,1714386637369,-500.0,0.00011776,2]
[324873001,1714386637542,-500.0,0.00011776,2]
[324873002,1714386637552,-2733.59,0.00011776,2]
[324873003,1714386637562,-500.0,0.00011776,2]
[324873004,1714386637571,-500.0,0.00011776,2]
[324873005,1714386637580,-500.0,0.00011776,2]
[324873006,1714386637590,-486.59,0.00011777,2]
[324873007,1714386637599,-500.0,0.00011777,2]
[324873008,1714386637608,-500.0,0.00011777,2]
[324873009,1714386637618,-500.0,0.00011777,2]
[324873010,1714386637627,-564.64439427,0.00011777,2]
[324873011,1714386637637,-225.43,0.00011777,2]
[324873012,1714386637646,-500.0,0.00011777,2]
[324873013,1714386637655,-445.42,0.00011777,2]
[324873014,1714386637665,-500.0,0.00011777,2]
[324873015,1714386637674,-500.0,0.00011777,2]
[324873016,1714386637684,-500.0,0.00011777,2]
[324873017,1714386637694,-500.0,0.00011777,2]
[324873018,1714386637703,-500.0,0.00011777,2]
[324873019,1714386637712,-500.0,0.00011777,2]
[324873020,1714386637722,-500.0,0.00011777,2]
[324873021,1714386637731,-500.0,0.00011777,2]
[324873022,1714386637740,-500.0,0.00011777,2]
[324873023,1714386637749,-150.0,0.00011777,2]
[324873024,1714386637758,-500.0,0.00011777,2]
[324873025,1714386637767,-500.0,0.00011777,2]
[324873026,1714386637777,-500.0,0.00011777,2]
[324873027,1714386637788,-598.88,0.00011777,2]
[324873028,1714386637797,-604.29,0.00011777,2]
[324873029,1714386637806,-290.86,0.00011777,2]
[324873030,1714386637816,-500.0,0.00011777,2]
[324873031,1714386637825,-500.0,0.00011777,2]
[324873032,1714386637834,-500.0,0.00011777,2]
[324873033,1714386637843,-500.0,0.00011777,2]
[324873034,1714386637852,-618.32,0.00011777,2]
[324873035,1714386637862,-500.0,0.00011777,2]
[324873036,1714386637871,-500.0,0.00011777,2]
[324873037,1714386637880,-500.0,0.00011777,2]
[324873038,1714386637890,-500.0,0.00011777,2]
[324873039,1714386637900,-500.0,0.00011777,2]
[324873040,1714386637909,-269.29,0.00011777,2]
[324873041,1714386637919,-500.0,0.00011777,2]
[324873042,1714386637928,-500.0,0.00011777,2]
[324873043,1714386637937,-491.73,0.00011777,2]
[324873044,1714386637946,-500.0,0.00011777,2]
[324873045,1714386637957,-500.0,0.00011777,2]
[324873046,1714386637967,-500.0,0.00011777,2]
[324873047,1714386637976,-815.72,0.00011777,2]
[324873048,1714386637986,-500.0,0.00011777,2]
[324873049,1714386637995,-500.0,0.00011777,2]
[324873050,1714386638006,-659.52,0.00011777,2]
[324873051,1714386638015,-500.0,0.00011777,2]
[324873052,1714386638025,-500.0,0.00011777,2]
[324873053,1714386638035,-500.0,0.00011777,2]
[324873054,1714386638043,-546.01,0.00011777,2]
[324873055,1714386638054,-500.0,0.00011777,2]
[324873056,1714386638063,-500.0,0.00011777,2]
[324873057,1714386638072,-500.0,0.00011777,2]
[324873058,1714386638082,-500.0,0.00011777,2]
[324873059,1714386638091,-689.25,0.00011777,2]
[324873060,1714386638101,-531.08,0.00011777,2]
[324873061,1714386638110,-500.0,0.00011777,2]
[324873062,1714386638119,-507.34,0.00011777,2]
[324873063,1714386638129,-1163.97,0.00011777,2]
[324873064,1714386638138,-500.0,0.00011777,2]
[324873065,1714386638148,-500.0,0.00011777,2]
[324873066,1714386638157,-500.0,0.00011777,2]
[324873067,1714386638167,-500.0,0.00011777,2]
[324873068,1714386638176,-500.0,0.00011777,2]
[324873069,1714386638186,-2054.82,0.00011777,2]
[324873070,1714386638195,-500.0,0.00011777,2]
[324873071,1714386638204,-500.0,0.00011777,2]
[324873072,1714386638213,-500.0,0.00011777,2]
[324873073,1714386638222,-1188.52,0.00011777,2]
[324873074,1714386638231,-1031.19,0.00011777,2]
[324873075,1714386638241,-542.03,0.00011777,2]
[324873076,1714386638250,-618.21,0.00011777,2]
[324873077,1714386638259,-500.0,0.00011777,2]
[324873079,1714386638268,-500.0,0.00011777,2]
[324873081,1714386638278,-500.0,0.00011777,2]
[324873083,1714386638288,-500.0,0.00011777,2]
[324873086,1714386638297,-500.0,0.00011777,2]
[324873089,1714386638306,-1137.67,0.00011777,2]
[324873092,1714386638315,-500.0,0.00011777,2]
[324873095,1714386638325,-520.76,0.00011777,2]
[324873097,1714386638334,-652.84,0.00011777,2]
[324873098,1714386638343,-500.0,0.00011777,2]
[324873099,1714386638352,-519.09,0.00011777,2]
[324873100,1714386638362,-2346.54,0.00011777,2]
[324873102,1714386638371,-863.26,0.00011777,2]
[324873104,1714386638380,-500.0,0.00011777,2]
[324873106,1714386638390,-500.0,0.00011777,2]
[324873108,1714386638399,-565.99,0.00011777,2]
[324873110,1714386638408,-500.0,0.00011777,2]
[324873112,1714386638417,-500.0,0.00011777,2]
[324873114,1714386638427,-508.25,0.00011777,2]
[324873116,1714386638437,-500.0,0.00011777,2]
[324873118,1714386638446,-592.63,0.00011777,2]
[324873120,1714386638455,-500.0,0.00011777,2]
[324873121,1714386638464,-242.9,0.00011777,2]
[324873123,1714386638473,-500.0,0.00011777,2]
[324873125,1714386638482,-500.0,0.00011777,2]
[324873127,1714386638491,-500.0,0.00011777,2]
[324873128,1714386638500,-500.0,0.00011777,2]
[324873129,1714386638509,-5817.91,0.00011777,2]
[324873130,1714386638518,-500.0,0.00011777,2]
[324873131,1714386638527,-500.0,0.00011777,2]
[324873132,1714386638538,-500.0,0.00011777,2]
[324873133,1714386638547,-500.0,0.00011777,2]
[324873134,1714386638558,-500.0,0.00011777,2]
[324873135,1714386638568,-500.0,0.00011777,2]
[324873136,1714386638578,-500.0,0.00011777,2]
[324873137,1714386638587,-500.0,0.00011777,2]
[324873138,1714386638597,-500.0,0.00011777,2]
[324873139,1714386638607,-500.0,0.00011777,2]
[324873140,1714386638616,-500.0,0.00011777,2]
[324873141,1714386638626,-500.0,0.00011777,2]
[324873142,1714386638635,-6832.74,0.00011777,2]
[324873143,1714386638644,-500.0,0.00011777,2]
[324873144,1714386638654,-500.0,0.00011777,2]
[324873145,1714386638663,-500.0,0.00011777,2]
[324873146,1714386638673,-500.0,0.00011777,2]
[324873147,1714386638682,-1052.31,0.00011777,2]
[324873148,1714386638692,-408.28,0.00011777,2]
[324873149,1714386638702,-500.0,0.00011777,2]
[324873150,1714386638711,-500.0,0.00011777,2]
[324873151,1714386638720,-500.0,0.00011777,2]
[324873152,1714386638729,-6960.29,0.00011777,2]
[324873153,1714386638739,-500.0,0.00011777,2]
[324873154,1714386638748,-500.0,0.00011777,2]
[324873155,1714386638757,-500.0,0.00011777,2]
[324873156,1714386638767,-1403.13,0.00011777,2]
[324873157,1714386638776,-2694.49,0.00011777,2]
[324873158,1714386638788,-500.0,0.00011777,2]
[324873159,1714386638797,-500.0,0.00011777,2]
[324873161,1714386638806,-500.0,0.00011778,2]
[324873163,1714386638815,-500.0,0.00011778,2]
[324873165,1714386638824,-500.0,0.00011778,2]
[324873167,1714386638834,-560.18,0.00011778,2]
[324873168,1714386638842,-500.0,0.00011778,2]
[324873169,1714386638851,-500.0,0.00011778,2]
[324873170,1714386638861,-500.0,0.00011778,2]
[324873171,1714386638870,-500.0,0.00011778,2]
[324873172,1714386638879,-500.0,0.00011778,2]
[324873173,1714386638888,-388.38620504,0.00011778,2]
[324873174,1714386638897,-209.50287488,0.00011778,2]
[324873175,1714386638906,-500.0,0.00011778,2]
[324873176,1714386638916,-406.31,0.00011778,2]
[324873177,1714386638926,-500.0,0.00011778,2]
[324873178,1714386638935,-500.0,0.00011778,2]
[324873179,1714386638945,-500.0,0.00011778,2]
[324873180,1714386638957,-500.0,0.00011778,2]
[324873181,1714386638976,-500.0,0.00011778,2]
[324873182,1714386638991,-524.72,0.00011778,2]
[324873183,1714386639001,-500.0,0.00011778,2]
[324873184,1714386639011,-500.0,0.00011778,2]
[324873185,1714386639021,-500.0,0.00011778,2]
[324873186,1714386639033,-1269.92,0.00011778,2]
[324873187,1714386639043,-514.35,0.00011778,2]
[324873188,1714386639053,-500.0,0.00011778,2]
[324873189,1714386639063,-500.0,0.00011778,2]
[324873191,1714386639073,-500.0,0.00011778,2]
[324873193,1714386639083,-1030.73,0.00011778,2]
[324873196,1714386639093,-500.0,0.00011778,2]
[324873198,1714386639103,-500.0,0.00011778,2]
[324873200,1714386639112,-500.0,0.00011779,2]
[324873203,1714386639122,-500.0,0.00011779,2]
[324873206,1714386639131,-500.0,0.00011779,2]
[324873209,1714386639142,-500.0,0.0001178,2]
[324873212,1714386639151,-1500.0,0.000118,2]
[324873215,1714386639161,-10000.0,0.000118,4]
[324873217,1714386639170,-254.06,0.00011806,2]
[324873219,1714386639180,-184.91292421,0.00011845,2]
[324873221,1714386639189,-924.83190277,0.00011894,2]
[324873223,1714386639199,-345.55186689,0.00011894,2]
[324873225,1714386639209,-5802.55430699,0.00011894,2]
[324873227,1714386639219,-310.68232269,0.00011895,2]
[324873229,1714386639228,-19856.1099,0.00011896,2]
[324873231,1714386639238,-1219.461,0.00011896,2]
[324873232,1714386639248,-124012.9661,0.00011896,2]
[324873233,1714386639257,-20222.4964,0.00011896,2]
[324873234,1714386639267,-558.2544269,0.00011896,2]
[324873235,1714386639277,-174.2168668,0.00011896,2]
[324873236,1714386639288,-176.75365529,0.000119,2]
[324873237,1714386639298,-22000.0,0.000119,2]
[324873238,1714386639308,-184.91292421,0.000119,2]
[324873239,1714386639318,-13300.0,0.000119,4]
[324873240,1714386639327,-268.73832276,0.000119,2]
[324873241,1714386639337,-2416.99886977,0.000119,2]
[324873242,1714386639347,-189.73207955,0.000119,2]
[324873243,1714386639356,-150.0,0.0001197,3]
[324873244,1714386639366,-500.0,0.0001198,2]
[324873245,1714386639376,-500.0,0.0001198,2]
[324873246,1714386639386,-500.0,0.0001198,2]
[324873247,1714386639395,-500.0,0.0001198,2]
[324873248,1714386639405,-500.0,0.0001198,2]
[324873249,1714386639415,-500.0,0.0001198,2]
[324873250,1714386639425,-627.03,0.0001198,2]
[324873251,1714386639434,-558.2544268,0.00011987,2]
[324873252,1714386639444,-187.65793343,0.00011994,2]
[324873253,1714386639454,-260.00563735,0.00011994,2]
[324873254,1714386639463,-210.71789428,0.00011994,2]
[324873255,1714386639473,-258.37937648,0.00011994,2]
[324873256,1714386639482,-155.0,0.00011994,2]
[324873257,1714386639492,-2044381.59742799,0.00011994,3]
[324873258,1714386639501,-649416.65862367,0.00011996,2]
[324873259,1714386639511,-546.96745632,0.00011996,2]
[324873260,1714386639520,-298.84757904,0.00011996,2]
[324873261,1714386639530,-2000.0,0.00011996,2]
[324873262,1714386639540,-200.0,0.00011996,2]
[324873263,1714386639550,-875.7144907,0.00011996,2]
[324873264,1714386639559,-200.0,0.00011996,2]